lending/lending_fUSD_20250808
["ID","MTS","AMOUNT","RATE_DAILY","PERIOD"]
[377932245,1754614264986,-451.58,0.00023013,2]
[377932246,1754614264996,-786.14,0.00023013,2]
[377932247,1754614265007,-666.42,0.00023013,2]
[377932248,1754614265020,-1433.09,0.00023013,2]
[377932249,1754614265030,-1047.76,0.00023013,2]
[377932250,1754614265041,-173.68,0.0002319,2]
[377932251,1754614265050,-400.0,0.00023287,2]
[377932252,1754614265061,-1357.58,0.00023287,2]
[377932253,1754614265072,-1208.7,0.00023287,2]
[377932254,1754614265083,-571.32,0.00023287,2]
[377932255,1754614265093,-722.94,0.00023287,2]
[377932256,1754614265103,-210.80643652,0.00023287,2]
[377932257,1754614265114,-400.0,0.00023287,2]
[377932258,1754614265124,-440.35,0.00023287,2]
[377932259,1754614265134,-400.0,0.00023287,2]
[377932260,1754614265145,-2803.03,0.00023287,2]
[377932261,1754614265162,-649.34,0.00023287,2]
[377932262,1754614265172,-1112.97,0.00023287,2]
[377932263,1754614265182,-1702.91,0.00023287,2]
[377932264,1754614265191,-400.0,0.00023287,2]
[377932265,1754614265205,-563.63,0.00023287,2]
[377932266,1754614265216,-535.07,0.00023287,2]
[377932267,1754614265226,-400.0,0.00023287,2]
[377932268,1754614265236,-412.44,0.00023287,2]
[377932269,1754614265246,-1496.19,0.00023287,2]
[377932270,1754614265257,-798.53,0.00023287,2]
[377932271,1754614265269,-636.33,0.00023287,2]
[377932272,1754614265278,-400.0,0.00023287,2]
[377932273,1754614265289,-501.71,0.00023287,2]
[377932274,1754614265299,-1301.51,0.00023287,2]
[377932275,1754614265309,-400.0,0.00023287,2]
[377932276,1754614265319,-400.0,0.00023287,2]
[377932277,1754614265329,-400.0,0.00023287,2]
[377932278,1754614265338,-1160.41,0.00023287,2]
[377932279,1754614265348,-502.75,0.00023287,2]
[377932280,1754614265358,-648.77,0.00023287,2]
[377932281,1754614265368,-400.0,0.00023287,2]
[377932282,1754614265378,-1559.58,0.00023287,2]
[377932283,1754614265387,-1110.84,0.00023287,2]
[377932284,1754614265397,-1082.24,0.00023287,2]
[377932285,1754614265407,-672.61,0.00023287,2]
[377932286,1754614265417,-738.48,0.00023287,2]
[377932287,1754614265427,-2850.84,0.00023287,2]
[377932288,1754614265437,-1783.35,0.00023287,2]
[377932289,1754614265446,-819.83,0.00023287,2]
[377932290,1754614265456,-1144.25,0.00023287,2]
[377932291,1754614265466,-400.0,0.00023287,2]
[377932292,1754614265476,-400.0,0.00023287,2]
[377932293,1754614265486,-1207.97,0.00023287,2]
[377932294,1754614265496,-774.82,0.00023287,2]
[377932295,1754614265505,-400.0,0.00023287,2]
[377932296,1754614265517,-400.0,0.00023287,2]
[377932297,1754614265528,-637.04,0.00023287,2]
[377932298,1754614265539,-809.38,0.00023287,2]
[377932299,1754614265550,-1872.75,0.00023287,2]
[377932300,1754614265559,-739.13,0.00023287,2]
[377932301,1754614265569,-518.6,0.00023287,2]
[377932302,1754614265580,-3096.84,0.00023287,2]
[377932303,1754614265589,-688.92,0.00023287,2]
[377932304,1754614265600,-724.63,0.00023287,2]
[377932305,1754614265611,-400.0,0.00023287,2]
[377932306,1754614265627,-1838.62,0.00023287,2]
[377932307,1754614265638,-2478.01,0.00023287,2]
[377932308,1754614265649,-717.49,0.00023287,2]
[377932309,1754614265661,-791.17,0.00023287,2]
[377932310,1754614265672,-453.61,0.00023287,2]
[377932311,1754614265682,-743.0,0.00023287,2]
[377932312,1754614265694,-2279.55,0.00023287,2]
[377932313,1754614265704,-833.52,0.00023287,2]
[377932314,1754614265714,-1092.65,0.00023287,2]
[377932315,1754614265725,-633.66,0.00023287,2]
[377932316,1754614265735,-1210.68,0.00023287,2]
[377932317,1754614265747,-900.29,0.00023287,2]
[377932318,1754614265758,-400.0,0.00023287,2]
[377932319,1754614265768,-757.08,0.00023287,2]
[377932320,1754614265778,-400.0,0.00023287,2]
[377932321,1754614265787,-602.93,0.00023287,2]
[377932322,1754614265797,-400.0,0.00023287,2]
[377932323,1754614265807,-1933.78,0.00023287,2]
[377932324,1754614265817,-541.11,0.00023287,2]
[377932325,1754614265827,-411.24,0.00023287,2]
[377932326,1754614265837,-1218.55,0.00023287,2]
[377932327,1754614265850,-2866.87,0.00023287,2]
[377932328,1754614265860,-400.0,0.00023287,2]
[377932329,1754614265870,-400.0,0.00023287,2]
[377932330,1754614265881,-1023.23,0.00023287,2]
[377932331,1754614265891,-400.0,0.00023287,2]
[377932332,1754614265902,-995.05,0.00023287,2]
[377932333,1754614265912,-1397.65,0.00023287,2]
[377932334,1754614265922,-400.0,0.00023287,2]
[377932335,1754614265933,-400.0,0.00023287,2]
[377932336,1754614265943,-440.38,0.00023287,2]
[377932337,1754614265953,-569.3,0.00023287,2]
[377932338,1754614265963,-1429.25,0.00023287,2]
[377932339,1754614265973,-1014.96,0.00023287,2]
[377932340,1754614265984,-627.88,0.00023287,2]
[377932341,1754614265995,-1063.03,0.00023287,2]
[377932342,1754614266005,-536.63,0.00023287,2]
[377932343,1754614266017,-400.0,0.00023287,2]
[377932344,1754614266027,-400.0,0.00023287,2]
[377932345,1754614266038,-1603.28,0.00023287,2]
[377932346,1754614266048,-400.0,0.00023287,2]
[377932347,1754614266058,-400.0,0.00023287,2]
[377932348,1754614266069,-400.0,0.00023287,2]
[377932349,1754614266079,-1163.02,0.00023287,2]
[377932350,1754614266089,-400.0,0.00023287,2]
[377932351,1754614266099,-1915.69,0.00023287,2]
[377932352,1754614266109,-481.01,0.00023287,2]
[377932353,1754614266119,-400.0,0.00023287,2]
[377932354,1754614266129,-973.9,0.00023287,2]
[377932355,1754614266139,-1809.74,0.00023287,2]
[377932356,1754614266150,-899.62,0.00023287,2]
[377932357,1754614266163,-960.68,0.00023287,2]
[377932358,1754614266174,-777.43,0.00023287,2]
[377932359,1754614266184,-400.0,0.00023287,2]
[377932360,1754614266194,-715.39,0.00023287,2]
[377932361,1754614266205,-3151.2,0.00023287,2]
[377932362,1754614266214,-1024.44,0.00023287,2]
[377932363,1754614266224,-452.77,0.00023287,2]
[377932364,1754614266236,-1570.29,0.00023287,2]
[377932365,1754614266245,-565.95,0.00023287,2]
[377932366,1754614266255,-755.68,0.00023287,2]
[377932367,1754614266265,-451.58,0.00023287,2]
[377932368,1754614266277,-786.14,0.00023287,2]
[377932369,1754614266287,-666.42,0.00023287,2]
[377932370,1754614266296,-1433.09,0.00023287,2]
[377932371,1754614266306,-1047.76,0.00023287,2]
[377932372,1754614266316,-615.0,0.00023288,7]
[377932373,1754614266326,-496.18548413,0.00023464,2]
[377932374,1754614266336,-4500.0,0.00023556,2]
[377932375,1754614266346,-400.0,0.00023561,2]
[377932376,1754614266356,-1357.58,0.00023561,2]
[377932377,1754614266366,-1208.7,0.00023561,2]
[377932378,1754614266375,-571.32,0.00023561,2]
[377932379,1754614266385,-722.94,0.00023561,2]
[377932380,1754614266394,-349.82514079,0.00023561,2]
[377932381,1754614266404,-440.35,0.00023561,2]
[377932382,1754614266414,-400.0,0.00023561,2]
[377932383,1754614266424,-2803.03,0.00023561,2]
[377932384,1754614266434,-649.34,0.00023561,2]
[377932385,1754614266444,-1112.97,0.00023561,2]
[377932386,1754614266454,-1702.91,0.00023561,2]
[377932387,1754614266464,-400.0,0.00023561,2]
[377932388,1754614266474,-563.63,0.00023561,2]
[377932389,1754614266485,-535.07,0.00023561,2]
[377932390,1754614266495,-400.0,0.00023561,2]
[377932391,1754614266506,-412.44,0.00023561,2]
[377932392,1754614266519,-1496.19,0.00023561,2]
[377932393,1754614266534,-798.53,0.00023561,2]
[377932394,1754614266546,-636.33,0.00023561,2]
[377932395,1754614266562,-400.0,0.00023561,2]
[377932396,1754614266574,-501.71,0.00023561,2]
[377932397,1754614266586,-1301.51,0.00023561,2]
[377932398,1754614266596,-400.0,0.00023561,2]
[377932399,1754614266608,-400.0,0.00023561,2]
[377932400,1754614266620,-400.0,0.00023561,2]
[377932401,1754614266634,-1160.41,0.00023561,2]
[377932402,1754614266645,-502.75,0.00023561,2]
[377932403,1754614266656,-648.77,0.00023561,2]
[377932404,1754614266667,-400.0,0.00023561,2]
[377932405,1754614266678,-1559.58,0.00023561,2]
[377932406,1754614266689,-1110.84,0.00023561,2]
[377932407,1754614266700,-1082.24,0.00023561,2]
[377932408,1754614266710,-672.61,0.00023561,2]
[377932409,1754614266722,-738.48,0.00023561,2]
[377932410,1754614266732,-2850.84,0.00023561,2]
[377932411,1754614266744,-1783.35,0.00023561,2]
[377932412,1754614266755,-819.83,0.00023561,2]
[377932413,1754614266768,-1144.25,0.00023561,2]
[377932414,1754614266784,-400.0,0.00023561,2]
[377932415,1754614266878,-400.0,0.00023561,2]
[377932416,1754614266890,-1207.97,0.00023561,2]
[377932417,1754614266900,-774.82,0.00023561,2]
[377932418,1754614266910,-321.34807979,0.00023561,2]
[377932419,1754614266920,-400.0,0.00023561,2]
[377932420,1754614266930,-637.04,0.00023561,2]
[377932421,1754614266940,-809.38,0.00023561,2]
[377932422,1754614266950,-1872.75,0.00023561,2]
[377932423,1754614266959,-739.13,0.00023561,2]
[377932424,1754614266970,-518.6,0.00023561,2]
[377932425,1754614266980,-3096.84,0.00023561,2]
[377932426,1754614266989,-688.92,0.00023561,2]
[377932427,1754614266999,-724.63,0.00023561,2]
[377932428,1754614267011,-400.0,0.00023561,2]
[377932429,1754614267024,-1838.62,0.00023561,2]
[377932430,1754614267034,-2478.01,0.00023561,2]
[377932431,1754614267044,-717.49,0.00023561,2]
[377932432,1754614267055,-791.17,0.00023561,2]
[377932433,1754614267066,-453.61,0.00023561,2]
[377932434,1754614267076,-743.0,0.00023561,2]
[377932435,1754614267087,-2279.55,0.00023561,2]
[377932436,1754614267098,-833.52,0.00023561,2]
[377932437,1754614267109,-1092.65,0.00023561,2]
[377932438,1754614267119,-633.66,0.00023561,2]
[377932439,1754614267129,-1210.68,0.00023561,2]
[377932440,1754614267139,-900.29,0.00023561,2]
[377932441,1754614267150,-521.83,0.00023561,2]
[377932442,1754614267160,-757.08,0.00023561,2]
[377932443,1754614267170,-291.57937987,0.00023561,2]
[377932444,1754614267181,-602.93,0.00023561,2]
[377932445,1754614267191,-400.0,0.00023561,2]
[377932446,1754614267201,-1933.78,0.00023561,2]
[377932447,1754614267211,-541.11,0.00023561,2]
[377932448,1754614267222,-411.24,0.00023561,2]
[377932449,1754614267232,-1218.55,0.00023561,2]
[377932450,1754614267242,-2866.87,0.00023561,2]
[377932451,1754614267251,-175.63521667,0.00023561,2]
[377932452,1754614267263,-400.0,0.00023561,2]
[377932453,1754614267276,-1023.23,0.00023561,2]
[377932454,1754614267286,-400.0,0.00023561,2]
[377932455,1754614267296,-995.05,0.00023561,2]
[377932456,1754614267305,-1397.65,0.00023561,2]
[377932457,1754614267315,-404.58814198,0.00023561,2]
[377932458,1754614267326,-400.0,0.00023561,2]
[377932459,1754614267335,-440.38,0.00023561,2]
[377932460,1754614267346,-569.3,0.00023561,2]
[377932461,1754614267358,-1429.25,0.00023561,2]
[377932462,1754614267368,-1014.96,0.00023561,2]
[377932463,1754614267378,-627.88,0.00023561,2]
[377932464,1754614267388,-1063.03,0.00023561,2]
[377932465,1754614267398,-536.63,0.00023561,2]
[377932466,1754614267407,-543.42787268,0.00023561,2]
[377932467,1754614267418,-376.97012672,0.00023561,2]
[377932468,1754614267427,-1603.28,0.00023561,2]
[377932469,1754614267437,-394.99299527,0.00023561,2]
[377932470,1754614267446,-400.0,0.00023561,2]
[377932471,1754614267456,-379.37924523,0.00023561,2]
[377932472,1754614267465,-1163.02,0.00023561,2]
[377932473,1754614267474,-400.0,0.00023561,2]
[377932474,1754614267484,-1915.69,0.00023561,2]
[377932475,1754614267494,-481.01,0.00023561,2]
[377932476,1754614267504,-400.0,0.00023561,2]
[377932477,1754614267514,-973.9,0.00023561,2]
[377932478,1754614267527,-1809.74,0.00023561,2]
[377932479,1754614267537,-899.62,0.00023561,2]
[377932480,1754614267547,-960.68,0.00023561,2]
[377932481,1754614267556,-777.43,0.00023561,2]
[377932482,1754614267566,-400.0,0.00023561,2]
[377932483,1754614267576,-715.39,0.00023561,2]
[377932484,1754614267586,-3151.2,0.00023561,2]
[377932485,1754614267596,-1024.44,0.00023561,2]
[377932486,1754614267606,-452.77,0.00023561,2]
[377932487,1754614267615,-1570.29,0.00023561,2]
[377932488,1754614267625,-565.95,0.00023561,2]
[377932489,1754614267635,-755.68,0.00023561,2]
[377932490,1754614267645,-451.58,0.00023561,2]
[377932491,1754614267654,-786.14,0.00023561,2]
[377932492,1754614267665,-666.42,0.00023561,2]
[377932493,1754614267675,-1433.09,0.00023561,2]
[377932494,1754614267685,-1047.76,0.00023561,2]
[377932495,1754614267695,-615.0,0.00023562,7]
[377932496,1754614267704,-823.0,0.00023653,2]
[377932497,1754614267714,-500.0,0.00023835,2]
[377932498,1754614267724,-400.0,0.00023835,2]
[377932499,1754614267733,-1357.58,0.00023835,2]
[377932500,1754614267743,-1208.7,0.00023835,2]
[377932501,1754614267754,-571.32,0.00023835,2]
[377932502,1754614267764,-722.94,0.00023835,2]
[377932503,1754614267776,-440.35,0.00023835,2]
[377932504,1754614267786,-400.0,0.00023835,2]
[377932505,1754614267795,-2803.03,0.00023835,2]
[377932506,1754614267805,-649.34,0.00023835,2]
[377932507,1754614267814,-1112.97,0.00023835,2]
[377932508,1754614267824,-1702.91,0.00023835,2]
[377932509,1754614267834,-400.0,0.00023835,2]
[377932510,1754614267844,-563.63,0.00023835,2]
[377932511,1754614267853,-535.07,0.00023835,2]
[377932512,1754614267863,-412.44,0.00023835,2]
[377932513,1754614267873,-400.0,0.00023835,2]
[377932514,1754614267882,-1496.19,0.00023835,2]
[377932515,1754614267892,-798.53,0.00023835,2]
[377932516,1754614267902,-636.33,0.00023835,2]
[377932517,1754614267912,-400.0,0.00023835,2]
[377932518,1754614267921,-501.71,0.00023835,2]
[377932519,1754614267931,-1301.51,0.00023835,2]
[377932520,1754614267941,-400.0,0.00023835,2]
[377932521,1754614267951,-306.83352855,0.00023835,2]
[377932522,1754614267960,-400.0,0.00023835,2]
[377932523,1754614267970,-1160.41,0.00023835,2]
[377932524,1754614267980,-502.75,0.00023835,2]
[377932525,1754614267990,-648.77,0.00023835,2]
[377932526,1754614267999,-400.0,0.00023835,2]
[377932527,1754614268015,-1559.58,0.00023835,2]
[377932528,1754614268025,-1110.84,0.00023835,2]
[377932529,1754614268035,-1082.24,0.00023835,2]
[377932530,1754614268045,-672.61,0.00023835,2]
[377932531,1754614268055,-738.48,0.00023835,2]
[377932532,1754614268065,-2850.84,0.00023835,2]
[377932533,1754614268075,-1783.35,0.00023835,2]
[377932534,1754614268085,-819.83,0.00023835,2]
[377932535,1754614268095,-1144.25,0.00023835,2]
[377932536,1754614268105,-262.27803718,0.00023835,2]
[377932537,1754614268115,-400.0,0.00023835,2]
[377932538,1754614268125,-1207.97,0.00023835,2]
[377932539,1754614268134,-774.82,0.00023835,2]
[377932540,1754614268144,-400.0,0.00023835,2]
[377932541,1754614268156,-637.04,0.00023835,2]
[377932542,1754614268166,-809.38,0.00023835,2]
[377932543,1754614268176,-1872.75,0.00023835,2]
[377932544,1754614268188,-739.13,0.00023835,2]
[377932545,1754614268198,-518.6,0.00023835,2]
[377932546,1754614268207,-3096.84,0.00023835,2]
[377932547,1754614268217,-688.92,0.00023835,2]
[377932548,1754614268229,-724.63,0.00023835,2]
[377932549,1754614268238,-400.0,0.00023835,2]
[377932550,1754614268248,-1838.62,0.00023835,2]
[377932551,1754614268259,-717.49,0.00023835,2]
[377932552,1754614268271,-2478.01,0.00023835,2]
[377932553,1754614268281,-791.17,0.00023835,2]
[377932554,1754614268290,-453.61,0.00023835,2]
[377932555,1754614268300,-743.0,0.00023835,2]
[377932556,1754614268310,-2279.55,0.00023835,2]
[377932557,1754614268319,-833.52,0.00023835,2]
[377932558,1754614268329,-1092.65,0.00023835,2]
[377932559,1754614268338,-633.66,0.00023835,2]
[377932560,1754614268347,-1210.68,0.00023835,2]
[377932561,1754614268357,-900.29,0.00023835,2]
[377932562,1754614268367,-757.08,0.00023835,2]
[377932563,1754614268376,-602.93,0.00023835,2]
[377932564,1754614268386,-400.0,0.00023835,2]
[377932565,1754614268395,-1933.78,0.00023835,2]
[377932566,1754614268405,-541.11,0.00023835,2]
[377932567,1754614268415,-411.24,0.00023835,2]
[377932568,1754614268425,-1218.55,0.00023835,2]
[377932569,1754614268435,-2866.87,0.00023835,2]
[377932570,1754614268444,-400.0,0.00023835,2]
[377932571,1754614268454,-1023.23,0.00023835,2]
[377932572,1754614268463,-400.0,0.00023835,2]
[377932573,1754614268472,-995.05,0.00023835,2]
[377932574,1754614268482,-1397.65,0.00023835,2]
[377932575,1754614268492,-400.0,0.00023835,2]
[377932576,1754614268503,-440.38,0.00023835,2]
[377932577,1754614268513,-569.3,0.00023835,2]
[377932578,1754614268525,-1429.25,0.00023835,2]
[377932579,1754614268536,-1014.96,0.00023835,2]
[377932580,1754614268545,-627.88,0.00023835,2]
[377932581,1754614268556,-1063.03,0.00023835,2]
[377932582,1754614268567,-536.63,0.00023835,2]
[377932583,1754614268577,-1603.28,0.00023835,2]
[377932584,1754614268587,-400.0,0.00023835,2]
[377932585,1754614268597,-1163.02,0.00023835,2]
[377932586,1754614268607,-400.0,0.00023835,2]
[377932587,1754614268617,-481.01,0.00023835,2]
[377932588,1754614268626,-1915.69,0.00023835,2]
[377932589,1754614268635,-400.0,0.00023835,2]
[377932590,1754614268645,-1809.74,0.00023835,2]
[377932591,1754614268654,-973.9,0.00023835,2]
[377932592,1754614268664,-899.62,0.00023835,2]
[377932593,1754614268674,-960.68,0.00023835,2]
[377932594,1754614268683,-777.43,0.00023835,2]
[377932595,1754614268693,-400.0,0.00023835,2]
[377932596,1754614268704,-715.39,0.00023835,2]
[377932597,1754614268713,-3151.2,0.00023835,2]
[377932598,1754614268723,-1024.44,0.00023835,2]
[377932599,1754614268732,-452.77,0.00023835,2]
[377932600,1754614268742,-1570.29,0.00023835,2]
[377932601,1754614268751,-565.95,0.00023835,2]
[377932602,1754614268761,-755.68,0.00023835,2]
[377932603,1754614268774,-451.58,0.00023835,2]
[377932604,1754614268784,-786.14,0.00023835,2]
[377932605,1754614268794,-666.42,0.00023835,2]
[377932606,1754614268805,-1433.09,0.00023835,2]
[377932607,1754614268815,-1047.76,0.00023835,2]
[377932608,1754614268825,-615.0,0.00023836,7]
[377932609,1754614268835,-500.0,0.0002387,2]
[377932610,1754614268845,-2100.0,0.000239,8]
[377932611,1754614268855,-3292.0,0.00024002,2]
[377932612,1754614268865,-457.55740054,0.00024035,2]
[377932613,1754614268875,-211.58213282,0.00024035,2]
[377932614,1754614268885,-160.0,0.00024037,2]
[377932615,1754614268895,-4577.98796701,0.00024104,2]
[377932616,1754614268904,-400.0,0.00024109,2]
[377932617,1754614268914,-1357.58,0.00024109,2]
[377932618,1754614268925,-1208.7,0.00024109,2]
[377932619,1754614268934,-571.32,0.00024109,2]
[377932620,1754614268944,-722.94,0.00024109,2]
[377932621,1754614268954,-440.35,0.00024109,2]
[377932622,1754614268964,-400.0,0.00024109,2]
[377932623,1754614268975,-2803.03,0.00024109,2]
[377932624,1754614268985,-649.34,0.00024109,2]
[377932625,1754614268995,-1112.97,0.00024109,2]
[377932626,1754614269008,-1702.91,0.00024109,2]
[377932627,1754614269019,-400.0,0.00024109,2]
[377932628,1754614269029,-563.63,0.00024109,2]
[377932629,1754614269040,-535.07,0.00024109,2]
[377932630,1754614269050,-400.0,0.00024109,2]
[377932631,1754614269060,-412.44,0.00024109,2]
[377932632,1754614269070,-1496.19,0.00024109,2]
[377932633,1754614269079,-798.53,0.00024109,2]
[377932634,1754614269088,-636.33,0.00024109,2]
[377932635,1754614269098,-400.0,0.00024109,2]
[377932636,1754614269108,-501.71,0.00024109,2]
[377932637,1754614269118,-1301.51,0.00024109,2]
[377932638,1754614269127,-400.0,0.00024109,2]
[377932639,1754614269139,-400.0,0.00024109,2]
[377932640,1754614269150,-1160.41,0.00024109,2]
[377932641,1754614269161,-502.75,0.00024109,2]
[377932642,1754614269171,-648.77,0.00024109,2]
[377932643,1754614269181,-400.0,0.00024109,2]
[377932644,1754614269193,-1559.58,0.00024109,2]
[377932645,1754614269203,-1110.84,0.00024109,2]
[377932646,1754614269213,-1082.24,0.00024109,2]
[377932647,1754614269223,-672.61,0.00024109,2]
[377932648,1754614269234,-738.48,0.00024109,2]
[377932649,1754614269244,-2850.84,0.00024109,2]
[377932650,1754614269254,-1783.35,0.00024109,2]
[377932651,1754614269264,-819.83,0.00024109,2]
[377932652,1754614269276,-1144.25,0.00024109,2]
[377932653,1754614269286,-400.0,0.00024109,2]
[377932654,1754614269296,-1207.97,0.00024109,2]
[377932655,1754614269306,-774.82,0.00024109,2]
[377932656,1754614269316,-400.0,0.00024109,2]
[377932657,1754614269325,-637.04,0.00024109,2]
[377932658,1754614269335,-809.38,0.00024109,2]
[377932659,1754614269344,-1872.75,0.00024109,2]
[377932660,1754614269354,-739.13,0.00024109,2]
[377932661,1754614269364,-518.6,0.00024109,2]
[377932662,1754614269374,-3096.84,0.00024109,2]
[377932663,1754614269384,-688.92,0.00024109,2]
[377932664,1754614269394,-724.63,0.00024109,2]
[377932665,1754614269404,-400.0,0.00024109,2]
[377932666,1754614269414,-217.135,0.00024109,2]
[377932667,1754614269426,-1838.62,0.00024109,2]
[377932668,1754614269436,-717.49,0.00024109,2]
[377932669,1754614269445,-2478.01,0.00024109,2]
[377932670,1754614269455,-791.17,0.00024109,2]
[377932671,1754614269465,-453.61,0.00024109,2]
[377932672,1754614269475,-743.0,0.00024109,2]
[377932673,1754614269485,-2279.55,0.00024109,2]
[377932674,1754614269494,-833.52,0.00024109,2]
[377932675,1754614269505,-1092.65,0.00024109,2]
[377932676,1754614269514,-1210.68,0.00024109,2]
[377932677,1754614269528,-633.66,0.00024109,2]
[377932678,1754614269539,-900.29,0.00024109,2]
[377932679,1754614269550,-757.08,0.00024109,2]
[377932680,1754614269560,-602.93,0.00024109,2]
[377932681,1754614269570,-400.0,0.00024109,2]
[377932682,1754614269580,-1933.78,0.00024109,2]
[377932683,1754614269590,-541.11,0.00024109,2]
[377932684,1754614269602,-411.24,0.00024109,2]
[377932685,1754614269612,-1218.55,0.00024109,2]
[377932686,1754614269623,-2866.87,0.00024109,2]
[377932687,1754614269633,-400.0,0.00024109,2]
[377932688,1754614269643,-1023.23,0.00024109,2]
[377932689,1754614269654,-272.66058878,0.00024109,2]
[377932690,1754614269664,-995.05,0.00024109,2]
[377932691,1754614269674,-1397.65,0.00024109,2]
[377932692,1754614269684,-400.0,0.00024109,2]
[377932693,1754614269693,-569.3,0.00024109,2]
[377932694,1754614269703,-440.38,0.00024109,2]
[377932695,1754614269713,-1429.25,0.00024109,2]
[377932696,1754614269723,-1014.96,0.00024109,2]
[377932697,1754614269733,-627.88,0.00024109,2]
[377932698,1754614269742,-1063.03,0.00024109,2]
[377932699,1754614269752,-536.63,0.00024109,2]
[377932700,1754614269762,-1603.28,0.00024109,2]
[377932701,1754614269774,-400.0,0.00024109,2]
[377932702,1754614269784,-1163.02,0.00024109,2]
[377932703,1754614269794,-400.0,0.00024109,2]
[377932704,1754614269803,-481.01,0.00024109,2]
[377932705,1754614269814,-1915.69,0.00024109,2]
[377932706,1754614269824,-191.40453999,0.00024109,2]
[377932707,1754614269833,-1809.74,0.00024109,2]
[377932708,1754614269843,-973.9,0.00024109,2]
[377932709,1754614269853,-899.62,0.00024109,2]
[377932710,1754614269863,-960.68,0.00024109,2]
[377932711,1754614269873,-777.43,0.00024109,2]
[377932712,1754614269884,-400.0,0.00024109,2]
[377932713,1754614269894,-715.39,0.00024109,2]
[377932714,1754614269904,-3151.2,0.00024109,2]
[377932715,1754614269914,-1024.44,0.00024109,2]
[377932716,1754614269924,-452.77,0.00024109,2]
[377932717,1754614269934,-1570.29,0.00024109,2]
[377932718,1754614269943,-565.95,0.00024109,2]
[377932719,1754614269953,-755.68,0.00024109,2]
[377932720,1754614269963,-451.58,0.00024109,2]
[377932721,1754614269973,-786.14,0.00024109,2]
[377932722,1754614269983,-1433.09,0.00024109,2]
[377932723,1754614269992,-1047.76,0.00024109,2]
[377932724,1754614270002,-666.42,0.00024109,2]
[377932725,1754614270013,-253.50155351,0.00024109,2]
[377932726,1754614270025,-615.0,0.0002411,7]
[377932727,1754614270035,-615.0,0.00024164,7]
[377932728,1754614270045,-400.0,0.00024383,2]
[377932729,1754614270054,-1357.58,0.00024383,2]
[377932730,1754614270065,-1208.7,0.00024383,2]
[377932731,1754614270075,-571.32,0.00024383,2]
[377932732,1754614270085,-722.94,0.00024383,2]
[377932733,1754614270095,-440.35,0.00024383,2]
[377932734,1754614270106,-400.0,0.00024383,2]
[377932735,1754614270116,-2803.03,0.00024383,2]
[377932736,1754614270126,-649.34,0.00024383,2]
[377932737,1754614270136,-1112.97,0.00024383,2]
[377932738,1754614270146,-1702.91,0.00024383,2]
[377932739,1754614270159,-400.0,0.00024383,2]
[377932740,1754614270170,-563.63,0.00024383,2]
[377932741,1754614270180,-535.07,0.00024383,2]
[377932742,1754614270192,-400.0,0.00024383,2]
[377932743,1754614270203,-412.44,0.00024383,2]
[377932744,1754614270213,-1496.19,0.00024383,2]